fUSD/lending_fUSD_20240718
["ID","MTS","AMOUNT","RATE_DAILY","PERIOD"]
[332540646,1721289109160,-151.09343033,0.00030116,2]
[332540647,1721289109171,-793.34,0.00030136,32]
[332540648,1721289109181,-151.23259794,0.00030171,7]
[332540649,1721289109191,-1837.519999,0.00030205,2]
[332540650,1721289109201,-346.82607503,0.00030301,7]
[332540651,1721289109211,-256.91,0.00030379,2]
[332540652,1721289109221,-151.09343033,0.00030412,2]
[332540653,1721289109231,-151.09343033,0.00030709,2]
[332540654,1721289109241,-720.51945968,0.00030716,7]
[332540655,1721289109251,-614.4207746,0.00030784,7]
[332540656,1721289109260,-356.0,0.000309,2]
[332540657,1721289109270,-1000.0,0.000309,2]
[332540658,1721289109279,-346.82607503,0.00030918,7]
[332540659,1721289109289,-720.51945968,0.00030945,7]
[332540660,1721289109299,-151.09343033,0.00031005,2]
[332540661,1721289109308,-219.8411582,0.00031039,7]
[332540662,1721289109318,-346.82607503,0.00031064,7]
[332540663,1721289109328,-377.81064388,0.0003112,2]
[332540664,1721289109338,-151.09343033,0.00031302,2]
[332540665,1721289109348,-614.4207746,0.00031348,7]
[332540666,1721289109358,-346.82607503,0.00031408,7]
[332540667,1721289109370,-793.34,0.00031506,37]
[332540668,1721289109380,-720.51945968,0.00031563,7]
[332540669,1721289109391,-346.82607503,0.00031595,7]
[332540670,1721289109400,-151.09343033,0.00031598,2]
[332540671,1721289109410,-151.09343033,0.00031894,2]
[332540672,1721289109419,-614.4207746,0.00031981,7]
[332540673,1721289109429,-614.4207746,0.00032124,7]
[332540674,1721289109440,-614.4207746,0.00032172,7]
[332540675,1721289109449,-151.09343033,0.00032191,2]
[332540676,1721289109459,-614.4207746,0.00032247,7]
[332540677,1721289109469,-614.4207746,0.00032256,7]
[332540678,1721289109479,-346.82607503,0.00032257,7]
[332540679,1721289109488,-614.4207746,0.00032334,7]
[332540680,1721289109498,-614.4207746,0.00032355,7]
[332540681,1721289109508,-151.23259794,0.00032358,7]
[332540682,1721289109517,-2110.0,0.00032365,15]
[332540683,1721289109527,-155.45399586,0.00032427,7]
[332540684,1721289109537,-614.4207746,0.00032437,7]
[332540685,1721289109546,-151.09343033,0.00032487,2]
[332540686,1721289109555,-160.06982044,0.00032498,7]
[332540687,1721289109565,-346.82607503,0.00032566,7]
[332540688,1721289109575,-256.91,0.00032643,2]
[332540689,1721289109585,-151.09343033,0.00032784,2]
[332540690,1721289109594,-151.23259794,0.00032855,7]
[332540691,1721289109604,-2110.0,0.00032865,15]
[332540692,1721289109614,-793.34,0.00032876,42]
[332540693,1721289109624,-193.66,0.00032877,2]
[332540694,1721289109633,-150.0,0.00033,14]
[332540695,1721289109642,-151.09343033,0.0003308,2]
[332540696,1721289109652,-1413.66,0.00033151,120]
[332540697,1721289109661,-720.51945968,0.0003324,7]
[332540698,1721289109671,-151.23259794,0.00033256,7]
[332540699,1721289109681,-720.51945968,0.00033277,7]
[332540700,1721289109691,-2110.0,0.00033365,15]
[332540701,1721289109699,-219.84115821,0.00033375,7]
[332540702,1721289109709,-720.51945968,0.00033376,7]
[332540703,1721289109719,-151.09343033,0.00033376,2]
[332540704,1721289109728,-155.45399586,0.00033413,7]
[332540705,1721289109738,-720.51945968,0.0003342,7]
[332540706,1721289109747,-156.46,0.000335,31]
[332540707,1721289109758,-156.46,0.000335,31]
[332540708,1721289109767,-614.4207746,0.00033559,7]
[332540709,1721289109778,-377.81064388,0.0003358,2]
[332540710,1721289109788,-151.23259794,0.00033627,7]
[332540711,1721289109798,-151.09343033,0.00033673,2]
[332540712,1721289109808,-752.89,0.00033785,2]
[332540713,1721289109817,-220.57,0.00033808,3]
[332540714,1721289109828,-614.4207746,0.00033852,7]
[332540715,1721289109838,-2110.0,0.00033865,15]
[332540716,1721289109848,-720.51945968,0.00033921,7]
[332540717,1721289109859,-151.09343033,0.00033969,2]
[332540718,1721289109869,-160.49618102,0.00033971,7]
[332540719,1721289109879,-40000.0,0.00034,5]
[332540720,1721289109890,-614.4207746,0.00034133,7]
[332540721,1721289109899,-151.23259794,0.00034211,7]
[332540722,1721289109909,-720.51945968,0.00034237,7]
[332540723,1721289109921,-793.34,0.00034246,47]
[332540724,1721289109931,-151.09343033,0.00034266,2]
[332540725,1721289109943,-346.82607503,0.00034347,7]
[332540726,1721289109953,-2110.0,0.00034365,15]
[332540727,1721289109963,-346.82607503,0.00034615,7]
[332540728,1721289109977,-2110.0,0.00034865,15]
[332540729,1721289109987,-256.91,0.00034907,2]
[332540730,1721289109997,-1000.0,0.00035,50]
[332540731,1721289110008,-1024.28,0.00035,60]
[332540732,1721289110019,-155.45399586,0.00035056,7]
[332540733,1721289110029,-155.45399586,0.00035161,7]
[332540734,1721289110038,-720.51945968,0.00035202,7]
[332540735,1721289110048,-614.4207746,0.00035355,7]
[332540736,1721289110058,-3244.49591465,0.00035362,7]
[332540737,1721289110067,-3244.49591462,0.00035362,7]
[332540738,1721289110077,-3244.49591462,0.00035362,7]
[332540739,1721289110086,-3244.49591462,0.00035362,7]
[332540740,1721289110095,-3244.49591462,0.00035362,7]
[332540741,1721289110104,-3244.49591462,0.00035362,7]
[332540742,1721289110115,-3244.49591462,0.00035362,7]
[332540743,1721289110125,-3244.49591462,0.00035362,7]
[332540744,1721289110133,-3244.49591462,0.00035362,7]
[332540745,1721289110144,-2110.0,0.00035365,15]
[332540746,1721289110155,-2343.83122991,0.00035423,40]
[332540747,1721289110166,-346.82607503,0.00035505,7]
[332540748,1721289110176,-150.0,0.00035576,2]
[332540749,1721289110186,-793.34,0.00035616,52]
[332540750,1721289110197,-155.45399601,0.00035638,7]
[332540751,1721289110206,-150.0,0.00035646,2]
[332540752,1721289110216,-151.38206091,0.00035647,7]
[332540753,1721289110226,-150.0,0.00035654,2]
[332540754,1721289110236,-150.0,0.0003567,2]
[332540755,1721289110246,-150.0,0.00035672,2]
[332540756,1721289110256,-150.0,0.00035688,2]
[332540757,1721289110267,-346.82607503,0.00035702,7]
[332540758,1721289110276,-720.51945974,0.00035723,7]
[332540759,1721289110286,-150.0,0.00035749,2]
[332540760,1721289110296,-150.0,0.00035762,2]
[332540761,1721289110305,-150.0,0.00035773,2]
[332540762,1721289110314,-150.0,0.0003578,2]
[332540763,1721289110324,-150.0,0.00035795,2]
[332540764,1721289110333,-150.0,0.00035796,2]
[332540765,1721289110342,-150.0,0.00035813,2]
[332540766,1721289110351,-150.0,0.00035818,2]
[332540767,1721289110361,-150.0,0.00035824,2]
[332540768,1721289110371,-150.0,0.00035826,2]
[332540769,1721289110380,-150.0,0.00035837,2]
[332540770,1721289110390,-150.0,0.00035839,2]
[332540771,1721289110399,-150.0,0.00035844,2]
[332540772,1721289110408,-150.0,0.00035848,2]
[332540773,1721289110418,-150.0,0.00035856,2]
[332540774,1721289110428,-150.0,0.0003586,2]
[332540775,1721289110439,-150.0,0.0003586,2]
[332540776,1721289110450,-151.23259797,0.00035863,7]
[332540777,1721289110461,-2110.0,0.00035865,15]
[332540778,1721289110470,-150.0,0.0003587,2]
[332540779,1721289110481,-150.0,0.00035874,2]
[332540780,1721289110493,-150.0,0.00035874,2]
[332540781,1721289110505,-150.0,0.00035876,2]
[332540782,1721289110514,-150.0,0.00035891,2]
[332540783,1721289110524,-150.0,0.00035902,2]
[332540784,1721289110535,-150.0,0.00035903,2]
[332540785,1721289110547,-150.0,0.0003591,2]
[332540786,1721289110558,-150.0,0.00035912,2]
[332540787,1721289110571,-150.0,0.00035913,2]
[332540788,1721289110582,-150.0,0.00035918,2]
[332540789,1721289110592,-614.42077469,0.00035919,7]
[332540790,1721289110602,-150.0,0.00035931,2]
[332540791,1721289110611,-150.0,0.00035933,2]
[332540792,1721289110620,-150.0,0.00035934,2]
[332540793,1721289110630,-150.0,0.00035941,2]
[332540794,1721289110639,-150.0,0.00035953,2]
[332540795,1721289110648,-150.0,0.00035961,2]
[332540796,1721289110658,-150.0,0.00035963,2]
[332540797,1721289110667,-150.0,0.00035972,2]
[332540798,1721289110676,-150.0,0.00035984,2]
[332540799,1721289110685,-150.0,0.0003599,2]
[332540800,1721289110694,-150.0,0.00035992,2]
[332540801,1721289110704,-150.0,0.00036006,2]
[332540802,1721289110713,-150.0,0.00036007,2]
[332540803,1721289110722,-150.0,0.00036008,2]
[332540804,1721289110731,-150.0,0.0003601,2]
[332540805,1721289110740,-150.0,0.00036031,2]
[332540806,1721289110750,-346.82607508,0.00036033,7]
[332540807,1721289110759,-150.0,0.00036035,2]
[332540808,1721289110768,-150.0,0.00036037,2]
[332540809,1721289110779,-377.81064388,0.00036039,2]
[332540810,1721289110788,-150.0,0.00036045,2]
[332540811,1721289110797,-150.0,0.00036046,2]
[332540812,1721289110806,-150.0,0.00036059,2]
[332540813,1721289110816,-150.0,0.00036069,2]
[332540814,1721289110826,-150.0,0.0003607,2]
[332540815,1721289110836,-150.0,0.00036076,2]
[332540816,1721289110845,-150.0,0.00036077,2]
[332540817,1721289110855,-150.0,0.00036079,2]
[332540818,1721289110864,-150.0,0.00036087,2]
[332540819,1721289110874,-150.0,0.00036087,2]
[332540820,1721289110883,-150.0,0.0003609,2]
[332540821,1721289110895,-150.0,0.0003609,2]
[332540822,1721289110907,-150.0,0.00036091,2]
[332540823,1721289110919,-150.0,0.00036097,2]
[332540824,1721289110930,-150.0,0.00036104,2]
[332540825,1721289110940,-150.0,0.00036106,2]
[332540826,1721289110950,-150.0,0.00036115,2]
[332540827,1721289110959,-150.0,0.00036126,2]
[332540828,1721289110972,-150.0,0.0003613,2]
[332540829,1721289110982,-150.0,0.00036133,2]
[332540830,1721289110993,-150.0,0.00036135,2]
[332540831,1721289111003,-151.0,0.00036135,7]
[332540832,1721289111013,-151.0,0.00036135,7]
[332540833,1721289111023,-151.0,0.00036135,7]
[332540834,1721289111032,-151.0,0.00036135,7]
[332540835,1721289111042,-151.0,0.00036135,7]
[332540836,1721289111053,-151.0,0.00036135,7]
[332540837,1721289111064,-163.08,0.00036135,7]
[332540838,1721289111074,-151.0,0.00036135,7]
[332540839,1721289111084,-151.0,0.00036135,7]
[332540840,1721289111094,-151.0,0.00036135,7]
[332540841,1721289111103,-151.0,0.00036135,7]
[332540842,1721289111113,-151.0,0.00036135,7]
[332540843,1721289111122,-151.0,0.00036135,7]
[332540844,1721289111132,-269.703854,0.00036135,7]
[332540845,1721289111141,-269.703854,0.00036135,7]
[332540846,1721289111151,-269.703854,0.00036135,7]
[332540847,1721289111161,-269.703854,0.00036135,7]
[332540848,1721289111170,-269.703854,0.00036135,7]
[332540849,1721289111181,-269.703854,0.00036135,7]
[332540850,1721289111192,-269.703854,0.00036135,7]
[332540851,1721289111202,-269.703854,0.00036135,7]
[332540852,1721289111211,-269.703854,0.00036135,7]
[332540853,1721289111221,-269.703854,0.00036135,7]
[332540854,1721289111231,-269.703854,0.00036135,7]
[332540855,1721289111240,-269.703854,0.00036135,7]
[332540856,1721289111250,-269.703854,0.00036135,7]
[332540857,1721289111259,-269.703854,0.00036135,7]
[332540858,1721289111269,-269.703854,0.00036135,7]
[332540859,1721289111279,-269.703854,0.00036135,7]
[332540860,1721289111289,-151.0,0.00036135,7]
[332540861,1721289111298,-151.0,0.00036135,7]
[332540862,1721289111306,-151.0,0.00036135,7]
[332540863,1721289111315,-151.0,0.00036135,7]
[332540864,1721289111325,-151.0,0.00036135,7]
[332540865,1721289111334,-151.0,0.00036135,7]
[332540866,1721289111343,-214.77455,0.00036135,7]
[332540867,1721289111352,-151.0,0.00036135,7]
[332540868,1721289111362,-151.0,0.00036135,7]
[332540869,1721289111371,-151.0,0.00036135,7]
[332540870,1721289111380,-151.0,0.00036135,7]
[332540871,1721289111389,-153.12,0.00036135,7]
[332540872,1721289111398,-151.0,0.00036135,7]
[332540873,1721289111408,-151.0,0.00036135,7]
[332540874,1721289111418,-151.0,0.00036135,7]
[332540875,1721289111428,-151.0,0.00036135,7]
[332540876,1721289111437,-151.0,0.00036135,7]
[332540877,1721289111448,-151.0,0.00036135,7]
[332540878,1721289111458,-151.0,0.00036135,7]
[332540879,1721289111468,-151.0,0.00036135,7]
[332540880,1721289111479,-151.0,0.00036135,7]
[332540881,1721289111490,-151.0,0.00036135,7]
[332540882,1721289111571,-151.0,0.00036135,7]
[332540883,1721289111582,-151.0,0.00036135,7]
[332540884,1721289111592,-151.0,0.00036135,7]
[332540885,1721289111603,-151.0,0.00036135,7]
[332540886,1721289111614,-151.0,0.00036135,7]
[332540887,1721289111623,-151.0,0.00036135,7]
[332540888,1721289111632,-151.0,0.00036135,7]
[332540889,1721289111642,-151.0,0.00036135,7]
[332540890,1721289111653,-151.0,0.00036135,7]
[332540891,1721289111663,-151.0,0.00036135,7]
[332540892,1721289111673,-151.0,0.00036135,7]
[332540893,1721289111683,-151.0,0.00036135,7]
[332540894,1721289111694,-151.0,0.00036135,7]
[332540895,1721289111704,-151.0,0.00036135,7]
[332540896,1721289111715,-151.0,0.00036135,7]
[332540897,1721289111727,-151.0,0.00036135,7]
[332540898,1721289111735,-151.0,0.00036135,7]
[332540899,1721289111745,-151.0,0.00036135,7]
[332540900,1721289111754,-151.0,0.00036135,7]
[332540901,1721289111763,-151.0,0.00036135,7]
[332540902,1721289111773,-247.37642,0.00036135,7]
[332540903,1721289111782,-151.0,0.00036135,7]
[332540904,1721289111791,-151.0,0.00036135,7]
[332540905,1721289111800,-151.0,0.00036135,7]
[332540906,1721289111809,-151.0,0.00036135,7]
[332540907,1721289111818,-151.0,0.00036135,7]
[332540908,1721289111828,-151.0,0.00036135,7]
[332540909,1721289111837,-151.0,0.00036135,7]
[332540910,1721289111846,-151.0,0.00036135,7]
[332540911,1721289111856,-154.852088,0.00036135,7]
[332540912,1721289111866,-151.0,0.00036135,7]
[332540913,1721289111875,-151.0,0.00036135,7]
[332540914,1721289111884,-151.0,0.00036135,7]
[332540915,1721289111895,-152.402571,0.00036135,7]
[332540916,1721289111907,-151.0,0.00036135,7]
[332540917,1721289111917,-151.0,0.00036135,7]
[332540918,1721289111927,-151.0,0.00036135,7]
[332540919,1721289111937,-151.0,0.00036135,7]
[332540920,1721289111946,-151.0,0.00036135,7]
[332540921,1721289111955,-151.0,0.00036135,7]
[332540922,1721289111965,-151.0,0.00036135,7]
[332540923,1721289111979,-151.0,0.00036135,7]
[332540924,1721289111987,-151.0,0.00036135,7]
[332540925,1721289111996,-151.0,0.00036135,7]
[332540926,1721289112007,-151.0,0.00036135,7]
[332540927,1721289112016,-151.0,0.00036135,7]
[332540928,1721289112025,-151.0,0.00036135,7]
[332540929,1721289112034,-151.0,0.00036135,7]
[332540930,1721289112045,-151.0,0.00036135,7]
[332540931,1721289112056,-151.0,0.00036135,7]
[332540932,1721289112067,-151.0,0.00036135,7]
[332540933,1721289112076,-151.0,0.00036135,7]
[332540934,1721289112086,-151.0,0.00036135,7]
[332540935,1721289112095,-151.0,0.00036135,7]
[332540936,1721289112104,-277.655014,0.00036135,7]
[332540937,1721289112114,-151.0,0.00036135,7]
[332540938,1721289112123,-151.0,0.00036135,7]
[332540939,1721289112132,-151.0,0.00036135,7]
[332540940,1721289112142,-151.0,0.00036135,7]
[332540941,1721289112150,-151.0,0.00036135,7]
[332540942,1721289112160,-151.0,0.00036135,7]
[332540943,1721289112169,-151.0,0.00036135,7]
[332540944,1721289112178,-151.0,0.00036135,7]
[332540945,1721289112187,-151.0,0.00036135,7]
[332540946,1721289112196,-151.0,0.00036135,7]
[332540947,1721289112206,-151.0,0.00036135,7]
[332540948,1721289112215,-174.265026,0.00036135,7]
[332540949,1721289112225,-1500.0,0.00036135,7]
[332540950,1721289112235,-1500.0,0.00036135,7]
[332540951,1721289112247,-917.832951,0.00036135,7]
[332540952,1721289112256,-917.832951,0.00036135,7]
[332540953,1721289112265,-917.832951,0.00036135,7]
[332540954,1721289112275,-917.832951,0.00036135,7]
[332540955,1721289112286,-917.832951,0.00036135,7]
[332540956,1721289112297,-917.832951,0.00036135,7]
[332540957,1721289112308,-917.832951,0.00036135,7]
[332540958,1721289112318,-917.832951,0.00036135,7]
[332540959,1721289112327,-917.832951,0.00036135,7]
[332540960,1721289112336,-917.832951,0.00036135,7]
[332540961,1721289112347,-917.832951,0.00036135,7]
[332540962,1721289112356,-917.832951,0.00036135,7]
[332540963,1721289112366,-917.832951,0.00036135,7]
[332540964,1721289112376,-917.832951,0.00036135,7]
[332540965,1721289112386,-917.832951,0.00036135,7]
[332540966,1721289112396,-917.832951,0.00036135,7]
[332540967,1721289112405,-151.0,0.00036135,7]
[332540968,1721289112415,-151.0,0.00036135,7]
[332540969,1721289112425,-151.0,0.00036135,7]
[332540970,1721289112434,-151.0,0.00036135,7]
[332540971,1721289112444,-151.0,0.00036139,7]
[332540972,1721289112455,-151.0,0.00036139,7]
[332540973,1721289112465,-152.690934,0.00036139,7]
[332540974,1721289112474,-151.0,0.00036139,7]
[332540975,1721289112484,-259.114184,0.00036139,7]
[332540976,1721289112493,-259.114184,0.00036139,7]
[332540977,1721289112502,-259.114184,0.00036139,7]
[332540978,1721289112511,-259.114184,0.00036139,7]
[332540979,1721289112520,-259.114184,0.00036139,7]
[332540980,1721289112529,-259.114184,0.00036139,7]
[332540981,1721289112538,-259.114184,0.00036139,7]
[332540982,1721289112547,-259.114184,0.00036139,7]
[332540983,1721289112557,-259.114184,0.00036139,7]
[332540984,1721289112566,-259.114184,0.00036139,7]
[332540985,1721289112575,-259.114184,0.00036139,7]
[332540986,1721289112584,-259.114184,0.00036139,7]
[332540987,1721289112593,-259.114184,0.00036139,7]
[332540988,1721289112602,-259.114184,0.00036139,7]
[332540989,1721289112611,-151.0,0.00036139,7]
[332540990,1721289112620,-151.0,0.00036139,7]
[332540991,1721289112630,-1549.976787,0.00036139,7]
[332540992,1721289112639,-1549.976787,0.00036139,7]
[332540993,1721289112649,-1549.976787,0.00036139,7]
[332540994,1721289112658,-1549.976787,0.00036139,7]
[332540995,1721289112667,-1549.976787,0.00036139,7]
[332540996,1721289112676,-1549.976787,0.00036139,7]
[332540997,1721289112685,-1549.976787,0.00036139,7]
[332540998,1721289112694,-1549.976787,0.00036139,7]
[332540999,1721289112703,-1549.976787,0.00036139,7]
[332541000,1721289112712,-1549.976787,0.00036139,7]
[332541001,1721289112722,-151.0,0.00036139,7]
[332541002,1721289112731,-1549.976787,0.00036139,7]
[332541003,1721289112741,-1549.976787,0.00036139,7]
[332541004,1721289112750,-1549.976787,0.00036139,7]
[332541005,1721289112760,-1549.976787,0.00036139,7]
[332541006,1721289112769,-151.0,0.00036139,7]
[332541007,1721289112778,-151.0,0.00036139,7]
[332541008,1721289112787,-151.0,0.00036139,7]
[332541009,1721289112796,-151.0,0.00036139,7]
[332541010,1721289112805,-151.0,0.00036139,7]
[332541011,1721289112815,-151.0,0.00036139,7]
[332541012,1721289112824,-151.0,0.00036139,7]
[332541013,1721289112834,-151.0,0.00036139,7]
[332541014,1721289112844,-151.0,0.00036139,7]
[332541015,1721289112853,-151.0,0.00036139,7]
[332541016,1721289112862,-151.0,0.00036139,7]
[332541017,1721289112872,-151.0,0.00036139,7]
[332541018,1721289112882,-151.0,0.00036139,7]
[332541019,1721289112891,-151.0,0.00036139,7]
[332541020,1721289112908,-151.0,0.00036139,7]
[332541021,1721289112919,-272.047912,0.00036139,7]
[332541022,1721289112928,-151.0,0.00036139,7]
[332541023,1721289112938,-151.0,0.00036139,7]
[332541024,1721289112947,-151.0,0.00036139,7]
[332541025,1721289112957,-151.0,0.00036139,7]
[332541026,1721289112967,-151.0,0.00036139,7]
[332541027,1721289112980,-151.0,0.00036139,7]
[332541028,1721289112989,-151.0,0.00036139,7]
[332541029,1721289112998,-151.672102,0.00036139,7]
[332541030,1721289113007,-151.0,0.00036139,7]
[332541031,1721289113017,-253.350468,0.00036139,7]
[332541032,1721289113026,-151.0,0.00036139,7]
[332541033,1721289113035,-151.0,0.00036139,7]
[332541034,1721289113044,-151.0,0.00036139,7]
[332541035,1721289113055,-151.0,0.00036139,7]
[332541036,1721289113065,-151.0,0.00036139,7]
[332541037,1721289113074,-2110040.06544463,0.00036144,7]
[332541038,1721289113638,-616.91,0.00021896,2]
[332541039,1721289113648,-500.0,0.00021917,2]
[332541040,1721289113657,-500.0,0.00021917,2]
[332541041,1721289113666,-500.0,0.00021917,2]
[332541042,1721289113676,-500.0,0.00022191,2]
[332541043,1721289113686,-510.47345489,0.00022191,2]
[332541044,1721289113699,-500.0,0.00022465,2]
[332541045,1721289113708,-500.0,0.00022465,2]
[332541046,1721289113717,-500.0,0.00022465,2]
[332541047,1721289113726,-215.37930068,0.00022639,2]
[332541048,1721289113736,-500.0,0.00022739,2]
[332541049,1721289113745,-500.0,0.00022739,2]
[332541050,1721289113755,-500.0,0.00022739,2]
[332541051,1721289113765,-500.0,0.00023013,2]
[332541052,1721289113775,-500.0,0.00023013,2]
[332541053,1721289113786,-500.0,0.00023287,2]
[332541054,1721289113796,-500.0,0.00023287,2]
[332541055,1721289113805,-500.0,0.00023287,2]
[332541056,1721289113814,-500.0,0.00023287,2]
[332541057,1721289113824,-500.0,0.00023561,2]
[332541058,1721289113838,-500.0,0.00023835,2]
[332541059,1721289113848,-500.0,0.00024109,2]
[332541060,1721289113859,-500.0,0.00024383,2]
[332541061,1721289113870,-500.0,0.00024657,2]
[332541062,1721289113879,-225.7013246,0.00025752,2]
[332541063,1721289113889,-151.09343033,0.00034562,2]
[332541064,1721289113898,-151.09343033,0.00034858,2]
[332541065,1721289113907,-151.09343033,0.00035155,2]
[332541066,1721289113917,-151.09343033,0.00035451,2]
[332541067,1721289113926,-151.0,0.00036135,7]
[332541068,1721289113937,-86630.86186761,0.00036144,7]
[332541069,1721289113951,-2812.00682453,0.00036144,7]
[332541070,1721289114162,-1104.23552967,0.00021479,2]
[332541071,1721289114171,-500.0,0.00021917,2]
[332541072,1721289114181,-500.0,0.00021917,2]
[332541073,1721289114190,-500.0,0.00021917,2]
[332541074,1721289114199,-500.0,0.00021917,2]
[332541075,1721289114208,-500.0,0.00021917,2]
[332541076,1721289114217,-500.0,0.00022191,2]
[332541077,1721289114229,-500.0,0.00022191,2]
[332541078,1721289114239,-500.0,0.00022191,2]
[332541079,1721289114250,-500.0,0.00022191,2]
[332541080,1721289114260,-500.0,0.00022465,2]
[332541081,1721289114270,-500.0,0.00022465,2]
[332541082,1721289114279,-500.0,0.00022465,2]
[332541083,1721289114290,-500.0,0.00022739,2]
[332541084,1721289114302,-500.0,0.00022739,2]
[332541085,1721289114311,-316.64511905,0.00022759,2]
[332541086,1721289114321,-500.0,0.00023013,2]
[332541087,1721289114331,-500.0,0.00023013,2]
[332541088,1721289114341,-500.0,0.00024931,2]
[332541089,1721289114351,-500.0,0.00025205,2]
[332541090,1721289114360,-500.0,0.00025479,2]
[332541091,1721289114370,-500.0,0.00025753,2]
[332541092,1721289114380,-500.0,0.00026027,2]
[332541093,1721289114389,-1838.02,0.00027397,10]
[332541094,1721289114399,-151.09343033,0.00035748,2]
[332541095,1721289114408,-151.09343033,0.00036044,2]
[332541096,1721289114417,-2469.17074746,0.00036144,7]
[332541097,1721289114427,-27055.09095268,0.00036144,5]
[332541098,1721289114436,-5234.17079047,0.00036144,5]
[332541099,1721289114448,-334.32400001,0.00036144,5]
[332541100,1721289114471,-583.9899862,0.00018968,2]
[332541101,1721289114485,-611.09007304,0.00018968,2]
[332541102,1721289114495,-500.0,0.00026301,2]
[332541103,1721289114505,-808.28337189,0.00036144,5]
[332541104,1721289114520,-344.3175,0.00026575,2]
[332541106,1721289325884,533.84392096,0.00024,60]
[332541107,1721289394629,265.22340987,0.00014055,2]
[332541108,1721290232073,-1273.14830745,0.0001493,2]
[332541109,1721290232087,-1088.09694114,0.00014972,2]
[332541110,1721290232097,-915.06738067,0.00014999,2]
[332541111,1721290232107,-1010.0,0.00015,2]
[332541112,1721290232120,-500.0,0.00015,2]
[332541113,1721290232130,-1692.48737074,0.00016019,2]
[332541114,1721290237807,-1131.25714518,0.00014899,2]
[332541115,1721290239945,-141.89116227,0.00014899,2]
[332541116,1721290239956,-3307.51262926,0.00016019,2]
[332541117,1721290239966,-300.0,0.00016027,2]
[332541118,1721290239976,-300.0,0.00016027,2]
[332541119,1721290239986,-190.53202361,0.00017036,2]
[332541120,1721290239996,-3973.24754201,0.00017259,2]
[332541121,1721290240007,-300.0,0.00017533,2]
[332541122,1721290240017,-157.0,0.00018282,2]
[332541123,1721290240026,-388.0,0.00018301,2]
[332541124,1721290240036,-3272.80559963,0.00018832,2]
[332541125,1721290240047,-159.71338224,0.00019,2]
[332541126,1721290240056,-155.0,0.0002,2]
[332541127,1721290240066,-2021.38780005,0.00020388,2]
[332541128,1721290240076,-2021.38780005,0.00020388,2]
[332541129,1721290240085,-366.47664087,0.00020404,2]
[332541130,1721290240096,-160.0,0.00020448,2]
[332541131,1721290240106,-413.80836051,0.00020811,2]
[332541132,1721290240115,-157.0,0.00020812,2]
[332541133,1721290240125,-1813.2484,0.000209,2]
[332541134,1721290240135,-180.746967,0.00020984,2]
[332541135,1721290240145,-282.858252,0.00020984,2]
[332541136,1721290240155,-178.462414,0.00020984,2]
[332541137,1721290240166,-282.85825,0.00020984,2]
[332541138,1721290240176,-180.746968,0.00020984,2]
[332541139,1721290240186,-236661.41047381,0.00021,2]
[332541140,1721290240206,-2293.5648762,0.00021,2]
[332541141,1721290240223,-19431.0,0.00021,2]
[332541152,1721290242922,-717.54836549,0.00020983,2]
[332541153,1721290242932,-2111.5348224,0.00021,2]
[332541154,1721290243484,-13919.70125397,0.00021,2]
[332541155,1721290243494,-327.6481753,0.00021177,2]
[332541157,1721290243506,-156.15026124,0.00021178,2]